[Event "WTCC-65 2018"]
[Site "Radebeul"]
[Date "2018.07.10"]
[Round "4"]
[White "Mueller, Horst"]
[Black "Donchenko, Anatoly"]
[Result "1/2-1/2"]
[ECO "A13"]
[WhiteElo "2180"]
[BlackElo "2301"]
[Annotator "NA"]
[PlyCount "93"]
[EventDate "2018.07.07"]
[EventType "team-tourn"]
[EventCountry "GER"]
[SourceTitle "playchess.com"]
[Source "ChessBase"]
[SourceQuality "1"]
[TimeControl "40/5400+30:1800+30"]

1. c4 {[%emt 0:00:00]} e6 {[%emt 0:00:00]} 2. Nf3 {[%emt 0:00:00]} d5 {[%emt 0:00:11]} 3. cxd5 {[%emt 0:00:34]} exd5 {[%emt 0:00:13]} 4. d4 {[%emt 0:00:03]} c6 {[%emt 0:01:21]} 5. Nc3 {[%emt 0:00:14]} Bf5 {[%emt 0:00:22]} 6. g3 {[%emt 0:01:23]} Bd6 {[%emt 0:01:03]} 7. Bg2 {[%emt 0:00:09]} Nf6 {[%emt 0:00:41]} 8. O-O {[%emt 0:00:16]} O-O {[%emt 0:04:31]} 9. Nh4 {[%emt 0:07:18]} Bc8 {[%emt 0:02:47]} 10. Qc2 {[%emt 0:02:40]} Re8 {[%emt 0:00:28]} 11. Bg5 {[%emt 0:04:13]} Na6 {[%emt 0:04:35]} 12. Rad1 {[%emt 0:02:18]} Be7 {[%emt 0:03:18]} 13. Rfe1 {[%emt 0:14:07]} g6 {[%emt 0:04:02]} 14. e4 {[%emt 0:15:24]} dxe4 {[%emt 0:03:09]} 15. Nxe4 {[%emt 0:04:40]} Be6 {[%emt 0:05:54]} 16. a3 {[%emt 0:03:48]} Nxe4 {[%emt 0:04:05]} 17. Bxe7 {[%emt 0:00:33]} Rxe7 {[%emt 0:00:43]} 18. Bxe4 {[%emt 0:01:29]} Nc7 {[%emt 0:02:03]} 19. Ng2 {[%emt 0:02:25]} Rd7 {[%emt 0:02:26]} 20. Qc5 {[%emt 0:05:29]} Bd5 {[%emt 0:04:24]} 21. Nf4 {[%emt 0:02:41]} Ne6 {[%emt 0:00:37]} 22. Nxe6 {[%emt 0:02:18]} Bxe6 {[%emt 0:00:10]} 23. Rd2 {[%emt 0:04:03]} Bd5 {[%emt 0:07:52]} 24. Bxd5 {[%emt 0:07:19]} Rxd5 {[%emt 0:00:11]} 25. Qe7 {[%emt 0:01:37]} Qd7 {[%emt 0:06:12]} 26. Re5 {[%emt 0:07:04]} Rd8 {[%emt 0:01:24]} 27. Qf6 {[%emt 0:02:14]} Rxe5 {[%emt 0:00:36]} 28. Qxe5 {[%emt 0:00:17]} Qd5 {[%emt 0:00:49]} 29. Re2 {[%emt 0:02:12]} a5 {[%emt 0:05:45]} 30. Qxd5 {[%emt 0:03:38]} Rxd5 {[%emt 0:00:09]} 31. Re5 {[%emt 0:00:07]} Rxd4 {[%emt 0:08:58]} 32. Rxa5 {[%emt 0:00:03]} b5 {[%emt 0:00:39]} 33. Ra7 {[%emt 0:02:19]} Rd2 {[%emt 0:00:53]} 34. b4 {[%emt 0:00:10]} Kg7 {[%emt 0:00:50]} 35. Kg2 {[%emt 0:00:07]} Rd3 {[%emt 0:00:12]} 36. Kf1 {[%emt 0:00:33]} Rc3 {[%emt 0:00:55]} 37. Ke2 {[%emt 0:00:18]} g5 {[%emt 0:00:52]} 38. h3 {[%emt 0:00:25]} h5 {[%emt 0:00:12]} 39. Kd2 {[%emt 0:00:34]} Rc4 {[%emt 0:00:44]} 40. Rd7 {[%emt 0:00:56]} h4 {[%emt 0:00:35]} 41. Rd3 {[%emt 0:31:00]} Kf6 {[%emt 0:32:35]} 42. Rf3+ {[%emt 0:01:31]} Ke6 {[%emt 0:00:18]} 43. Re3+ {[%emt 0:00:16]} Kd5 {[%emt 0:00:34]} 44. Rf3 {[%emt 0:00:24]} Ke6 {[%emt 0:01:18]} 45. Re3+ {[%emt 0:02:39]} Kd5 {[%emt 0:07:07]} 46. Rf3 {[%emt 0:00:31]} Ke6 {[%emt 0:06:26]} 47. Re3+ {[%emt 0:00:28]} 1/2-1/2

[Event "WTCC-65 2018"]
[Site "Radebeul"]
[Date "2018.07.10"]
[Round "4"]
[White "Wahlbom, Magnus"]
[Black "Nickl, Klaus"]
[Result "1-0"]
[ECO "C10"]
[WhiteElo "2172"]
[BlackElo "2026"]
[Annotator "NA"]
[PlyCount "99"]
[EventDate "2018.07.07"]
[EventType "team-tourn"]
[EventCountry "GER"]
[SourceTitle "playchess.com"]
[Source "ChessBase"]
[SourceQuality "1"]
[TimeControl "40/5400+30:1800+30"]

1. e4 {[%emt 0:00:00]} e6 {[%emt 0:00:00]} 2. d4 {[%emt 0:00:00]} d5 {[%emt 0:00:00]} 3. Nc3 {[%emt 0:00:04]} dxe4 {[%emt 0:00:03]} 4. Nxe4 {[%emt 0:00:08]} Nd7 {[%emt 0:00:10]} 5. Nf3 {[%emt 0:00:16]} Ngf6 {[%emt 0:00:10]} 6. Nxf6+ {[%emt 0:00:25]} Nxf6 {[%emt 0:00:12]} 7. Bd3 {[%emt 0:01:32]} c5 {[%emt 0:02:09]} 8. dxc5 {[%emt 0:00:56]} Bxc5 {[%emt 0:00:13]} 9. O-O {[%emt 0:01:06]} O-O {[%emt 0:01:44]} 10. b3 {[%emt 0:03:12]} b6 {[%emt 0:04:28]} 11. Bb2 {[%emt 0:01:54]} Bb7 {[%emt 0:00:16]} 12. Qe2 {[%emt 0:03:46]} Qd5 {[%emt 0:02:27]} 13. Bxf6 {[%emt 0:30:32]} gxf6 {[%emt 0:00:13]} 14. Rad1 {[%emt 0:00:07]} Qh5 {[%emt 0:01:06]} 15. Be4 {[%emt 0:00:07]} Bxe4 {[%emt 0:08:50]} 16. Qxe4 {[%emt 0:00:07]} a5 {[%emt 0:02:00]} 17. Rd3 {[%emt 0:08:12]} Rad8 {[%emt 0:04:50]} 18. Rfd1 {[%emt 0:02:24]} Rxd3 {[%emt 0:02:18]} 19. Rxd3 {[%emt 0:01:09]} Qh6 {[%emt 0:01:38]} 20. Qe1 {[%emt 0:01:36]} Qf4 {[%emt 0:05:42]} 21. c3 {[%emt 0:04:44]} e5 {[%emt 0:04:31]} 22. Qd2 {[%emt 0:05:49]} Qxd2 {[%emt 0:06:14]} 23. Nxd2 {[%emt 0:00:23]} Be7 {[%emt 0:03:44]} 24. Kf1 {[%emt 0:02:41]} Rd8 {[%emt 0:00:14]} 25. Ke2 {[%emt 0:00:34]} f5 {[%emt 0:03:33]} 26. Rxd8+ {[%emt 0:12:38]} Bxd8 {[%emt 0:00:15]} 27. a4 {[%emt 0:00:35]} f6 {[%emt 0:01:14]} 28. Kd3 {[%emt 0:01:29]} f4 {[%emt 0:08:40]} 29. Ke4 {[%emt 0:01:03]} Kf7 {[%emt 0:01:00]} 30. Kf5 {[%emt 0:01:06]} Ke7 {[%emt 0:01:41]} 31. f3 {[%emt 0:00:48]} Kf7 {[%emt 0:00:25]} 32. b4 {[%emt 0:07:42]} Ke7 {[%emt 0:10:12]} 33. bxa5 {[%emt 0:00:32]} bxa5 {[%emt 0:00:02]} 34. Ne4 {[%emt 0:00:08]} Kd7 {[%emt 0:02:03]} 35. Nxf6+ {[%emt 0:02:56]} Bxf6 {[%emt 0:00:13]} 36. Kxf6 {[%emt 0:00:09]} Kd6 {[%emt 0:00:17]} 37. Kf5 {[%emt 0:00:48]} Kd5 {[%emt 0:00:19]} 38. g4 {[%emt 0:01:26]} fxg3 {[%emt 0:02:02]} 39. hxg3 {[%emt 0:00:08]} Kc4 {[%emt 0:06:10]} 40. Kxe5 {[%emt 0:00:19]} Kb3 {[%emt 0:00:26]} 41. f4 {[%emt 0:31:14]} Kxa4 {[%emt 0:30:08]} 42. f5 {[%emt 0:00:13]} Kb3 {[%emt 0:00:09]} 43. f6 {[%emt 0:00:09]} a4 {[%emt 0:00:06]} 44. f7 {[%emt 0:00:05]} a3 {[%emt 0:00:07]} 45. f8=Q {[%emt 0:00:05]} a2 {[%emt 0:00:09]} 46. Qb4+ {[%emt 0:00:14]} Kc2 {[%emt 0:00:12]} 47. Qa4+ {[%emt 0:00:07]} Kb2 {[%emt 0:00:06]} 48. c4 {[%emt 0:00:05]} a1=Q {[%emt 0:00:08]} 49. Qxa1+ {[%emt 0:00:05]} Kxa1 {[%emt 0:00:08]} 50. c5 1-0

[Event "WTCC-65 2018"]
[Site "Radebeul"]
[Date "2018.07.10"]
[Round "4"]
[White "Zimmermann, Rolf"]
[Black "Rotstein, Jefim"]
[Result "0-1"]
[ECO "A60"]
[WhiteElo "2165"]
[BlackElo "2318"]
[Annotator "NA"]
[PlyCount "108"]
[EventDate "2018.07.07"]
[EventType "team-tourn"]
[EventCountry "GER"]
[SourceTitle "playchess.com"]
[Source "ChessBase"]
[SourceQuality "1"]
[TimeControl "40/5400+30:1800+30"]

1. d4 {[%emt 0:00:00]} Nf6 {[%emt 0:00:00]} 2. c4 {[%emt 0:00:01]} c5 {[%emt 0:00:49]} 3. d5 {[%emt 0:02:52]} e6 {[%emt 0:01:04]} 4. Nc3 {[%emt 0:00:45]} exd5 {[%emt 0:00:11]} 5. Nxd5 {[%emt 0:00:22]} Nxd5 {[%emt 0:00:17]} 6. Qxd5 {[%emt 0:00:45]} d6 {[%emt 0:01:13]} 7. Bd2 {[%emt 0:07:48]} Nc6 {[%emt 0:01:43]} 8. Bc3 {[%emt 0:02:01]} Be6 {[%emt 0:00:12]} 9. Qd3 {[%emt 0:01:02]} d5 {[%emt 0:02:24]} 10. cxd5 {[%emt 0:01:39]} Qxd5 {[%emt 0:00:13]} 11. e4 {[%emt 0:01:28]} Qxd3 {[%emt 0:00:10]} 12. Bxd3 {[%emt 0:00:02]} O-O-O {[%emt 0:01:26]} 13. Bc2 {[%emt 0:07:49]} Nd4 {[%emt 0:01:32]} 14. Bxd4 {[%emt 0:02:56]} cxd4 {[%emt 0:02:15]} 15. Bd3 {[%emt 0:09:26]} Bb4+ {[%emt 0:02:51]} 16. Ke2 {[%emt 0:02:34]} Rhe8 {[%emt 0:00:33]} 17. a3 {[%emt 0:05:24]} Ba5 {[%emt 0:00:22]} 18. f4 Bd5 {[%emt 0:03:19]} 19. Rc1+ {[%emt 0:16:39]} Bc7 {[%emt 0:04:08]} 20. Kf3 {[%emt 0:01:06]} f5 {[%emt 0:01:15]} 21. Re1 {[%emt 0:00:02]} fxe4+ {[%emt 0:00:15]} 22. Rxe4 {[%emt 0:00:31]} Bxe4+ {[%emt 0:00:21]} 23. Bxe4 {[%emt 0:00:02]} d3 {[%emt 0:00:18]} 24. Nh3 {[%emt 0:00:18]} d2 {[%emt 0:01:09]} 25. Rd1 {[%emt 0:00:05]} g6 {[%emt 0:01:35]} 26. Nf2 {[%emt 0:01:11]} Bb6 {[%emt 0:00:24]} 27. Ng4 {[%emt 0:01:49]} Re7 {[%emt 0:01:08]} 28. Ne5 {[%emt 0:01:10]} Rd4 {[%emt 0:03:00]} 29. Bc2 {[%emt 0:03:04]} Rc7 {[%emt 0:04:11]} 30. Bd3 {[%emt 0:00:49]} a5 {[%emt 0:06:51]} 31. Rxd2 {[%emt 0:00:30]} Kb8 {[%emt 0:01:19]} 32. Re2 {[%emt 0:01:12]} Rc5 {[%emt 0:00:55]} 33. Re4 {[%emt 0:03:14]} Rd8 {[%emt 0:03:12]} 34. Bc4 {[%emt 0:01:02]} Rc7 {[%emt 0:01:48]} 35. b3 {[%emt 0:02:46]} Rd2 {[%emt 0:02:39]} 36. Re2 {[%emt 0:04:50]} Rxe2 {[%emt 0:00:32]} 37. Kxe2 {[%emt 0:00:29]} Bd4 {[%emt 0:00:29]} 38. Nf3 {[%emt 0:01:06]} Re7+ {[%emt 0:01:12]} 39. Kd3 {[%emt 0:02:36]} Be3 {[%emt 0:00:26]} 40. g3 {[%emt 0:04:33]} Bc5 {[%emt 0:00:25]} 41. Ne5 {[%emt 0:32:18]} Bxa3 {[%emt 0:30:18]} 42. h4 {[%emt 0:01:00]} Kc7 {[%emt 0:02:25]} 43. Kd4 {[%emt 0:09:05]} Bb2+ {[%emt 0:00:41]} 44. Kd5 {[%emt 0:00:06]} Bxe5 {[%emt 0:01:41]} 45. fxe5 {[%emt 0:00:44]} Rd7+ {[%emt 0:00:18]} 46. Ke6 {[%emt 0:00:31]} Rd4 {[%emt 0:00:23]} 47. Kf7 {[%emt 0:00:19]} Re4 {[%emt 0:01:56]} 48. Kg7 {[%emt 0:00:00]} a4 {[%emt 0:00:00]} 49. Bg8 {[%emt 0:00:00]} a3 {[%emt 0:00:00]} 50. b4 {[%emt 0:00:00]} Rxe5 {[%emt 0:00:00]} 51. Kxh7 {[%emt 0:00:00]} Kd6 {[%emt 0:00:00]} 52. Ba2 {[%emt 0:00:00]} Re2 {[%emt 0:00:00]} 53. Bc4 {[%emt 0:00:00]} Re4 {[%emt 0:00:00]} 54. Ba2 {[%emt 0:00:00]} Rg4 {[%emt 0:00:00]} 0-1

[Event "WTCC-65 2018"]
[Site "Radebeul"]
[Date "2018.07.10"]
[Round "4"]
[White "Krauseneck, Peter"]
[Black "Buchal, Stephan"]
[Result "1/2-1/2"]
[ECO "B06"]
[WhiteElo "2147"]
[BlackElo "2329"]
[Annotator "NA"]
[PlyCount "85"]
[EventDate "2018.07.07"]
[EventType "team-tourn"]
[EventCountry "GER"]
[SourceTitle "playchess.com"]
[Source "ChessBase"]
[SourceQuality "1"]
[TimeControl "40/5400+30:1800+30"]

1. d4 {[%emt 0:00:00]} g6 {[%emt 0:00:02]} 2. e4 {[%emt 0:00:00]} Bg7 {[%emt 0:00:12]} 3. Nc3 {[%emt 0:00:02]} d6 {[%emt 0:00:14]} 4. Be3 {[%emt 0:01:04]} a6 {[%emt 0:01:56]} 5. h4 {[%emt 0:02:12]} Nf6 {[%emt 0:02:01] B06: Modern Defence} (5... h6 6. Qd2 b5 7. f3 Bb7 8. O-O-O Nd7 9. Kb1 Nb6 10. Bd3 Nf6 11. Nh3 Nfd7 12. Nf4 e6 13. Nce2 {0-1 (43) Fressinet,L (2662)-Petrosian,T (2601) Riadh 2017}) 6. Be2 {[%emt 0:00:25]} h5 {[%emt 0:05:22]} 7. Nh3 {[%emt 0:00:37]} Bxh3 {[%emt 0:06:31]} 8. Rxh3 {[%emt 0:00:11]} b5 $146 {[%emt 0:09:00]} ({Predecessor:} 8... Nbd7 9. f4 e6 10. e5 Ng8 11. d5 dxe5 12. dxe6 fxe6 13. Qd3 {1-0 (32) Lyell,M (2259)-Farkas,T (2257) Kecskemet 2013}) 9. Bf3 {[%emt 0:12:34]} Nbd7 {[%emt 0:02:13]} 10. e5 {[%emt 0:03:44]} dxe5 {[%emt 0:00:12]} 11. Bxa8 {[%emt 0:00:20]} Qxa8 {[%emt 0:00:09]} 12. Qf3 {[%emt 0:03:29]} e4 {[%emt 0:10:32]} 13. Qf4 {[%emt 0:05:39]} b4 {[%emt 0:07:55]} 14. Ne2 {[%emt 0:04:04]} Qc6 {[%emt 0:01:03]} 15. c3 {[%emt 0:08:32]} Nb6 {[%emt 0:12:31]} 16. Qg3 {[%emt 0:05:53]} Nc4 {[%emt 0:06:47]} 17. b3 {[%emt 0:10:02]} Nxe3 {[%emt 0:07:29]} 18. Qxe3 {[%emt 0:01:44]} Ng4 {[%emt 0:01:17]} 19. Qg3 {[%emt 0:11:38]} O-O {[%emt 0:05:26]} 20. cxb4 {[%emt 0:03:30]} e5 {[%emt 0:02:37]} 21. Rc1 {[%emt 0:02:12]} Qb6 {[%emt 0:02:20]} 22. d5 {[%emt 0:04:13]} e3 {[%emt 0:06:27]} 23. fxe3 {[%emt 0:03:59]} Qxb4+ {[%emt 0:00:19]} 24. Nc3 {[%emt 0:04:34]} Bh6 {[%emt 0:00:36]} 25. Ke2 {[%emt 0:04:38]} Nxe3 {[%emt 0:01:24]} 26. Rhh1 {[%emt 0:01:00]} Nf5 {[%emt 0:00:47]} 27. Qxe5 {[%emt 0:00:16]} Qg4+ {[%emt 0:02:35]} 28. Kd3 {[%emt 0:00:18]} Bxc1 {[%emt 0:01:41]} 29. Rxc1 {[%emt 0:00:01]} Nd6 {[%emt 0:01:21]} 30. Ne4 {[%emt 0:01:18]} Nxe4 {[%emt 0:00:04]} 31. Qxe4 {[%emt 0:00:11]} Qd7 {[%emt 0:00:33]} 32. Rc6 {[%emt 0:02:43]} Re8 {[%emt 0:01:00]} 33. Qf3 {[%emt 0:00:07]} Re5 {[%emt 0:01:32]} 34. Kd4 {[%emt 0:01:10]} Rf5 {[%emt 0:00:13]} 35. Qe4 {[%emt 0:00:13]} a5 {[%emt 0:00:46]} 36. a4 {[%emt 0:01:24]} Qd8 {[%emt 0:01:40]} 37. g3 {[%emt 0:01:44]} Rf1 {[%emt 0:00:57]} 38. Qe2 {[%emt 0:02:16]} Rf5 {[%emt 0:00:23]} 39. Qe4 {[%emt 0:00:13]} Rf1 {[%emt 0:00:28]} 40. Qe2 {[%emt 0:00:04]} Rf5 {[%emt 0:00:47]} 41. Qb5 {[%emt 0:06:26]} Qe7 {[%emt 0:05:24]} 42. Qb8+ {[%emt 0:04:50]} Kg7 {[%emt 0:01:47]} 43. Qxc7 $19 {[%emt 0:15:51]} 1/2-1/2

[Event "WTCC-65 2018"]
[Site "Radebeul"]
[Date "2018.07.10"]
[Round "4"]
[White "Witte, Manfred"]
[Black "Bartsch, Berthold"]
[Result "0-1"]
[ECO "B29"]
[WhiteElo "2140"]
[BlackElo "2248"]
[Annotator "NA"]
[PlyCount "66"]
[EventDate "2018.07.07"]
[EventType "team-tourn"]
[EventCountry "GER"]
[SourceTitle "playchess.com"]
[Source "ChessBase"]
[SourceQuality "1"]
[TimeControl "40/5400+30:1800+30"]

1. e4 {[%emt 0:00:00]} c5 {[%emt 0:00:53]} 2. Nf3 {[%emt 0:00:00]} Nf6 {[%emt 0:00:04]} 3. e5 {[%emt 0:00:24]} Nd5 {[%emt 0:00:07]} 4. Nc3 {[%emt 0:00:24]} e6 {[%emt 0:00:22]} 5. Nxd5 {[%emt 0:00:13]} exd5 {[%emt 0:00:03]} 6. c3 {[%emt 0:00:11]} d6 {[%emt 0:01:18]} 7. d4 {[%emt 0:06:28]} Nc6 {[%emt 0:06:45]} 8. Bb5 {[%emt 0:04:09]} a6 {[%emt 0:03:43]} 9. Bxc6+ {[%emt 0:02:08]} bxc6 {[%emt 0:00:02]} 10. O-O {[%emt 0:00:33]} Be7 {[%emt 0:00:23]} 11. exd6 {[%emt 0:00:27]} Qxd6 {[%emt 0:00:34]} 12. dxc5 {[%emt 0:00:57]} Qxc5 {[%emt 0:00:09]} 13. Be3 {[%emt 0:08:59]} Qd6 {[%emt 0:00:18]} 14. b4 {[%emt 0:01:06]} Qc7 {[%emt 0:03:14]} 15. Bc5 {[%emt 0:04:39]} Bxc5 {[%emt 0:02:09]} 16. bxc5 {[%emt 0:00:15]} O-O {[%emt 0:00:04]} 17. Qd4 {[%emt 0:00:40]} Bf5 {[%emt 0:07:23]} 18. Nh4 {[%emt 0:04:16]} Bd7 {[%emt 0:04:21]} 19. Rfe1 {[%emt 0:07:11]} Rfe8 {[%emt 0:00:26]} 20. Nf3 {[%emt 0:05:12]} Rab8 {[%emt 0:04:27]} 21. Rxe8+ {[%emt 0:08:13]} Bxe8 {[%emt 0:01:44]} 22. Nd2 {[%emt 0:04:34]} f6 {[%emt 0:00:53]} 23. Qd3 {[%emt 0:04:36]} Qa5 {[%emt 0:05:56]} 24. Qd4 {[%emt 0:03:33]} Bg6 {[%emt 0:02:11]} 25. a4 {[%emt 0:01:54]} Re8 {[%emt 0:01:49]} 26. h4 {[%emt 0:01:03]} Qc7 {[%emt 0:00:46]} 27. g3 {[%emt 0:02:30]} Re2 {[%emt 0:03:27]} 28. c4 {[%emt 0:01:40]} Qe5 {[%emt 0:01:36]} 29. Nf3 {[%emt 0:01:11]} Qf5 {[%emt 0:06:42]} 30. Nd2 {[%emt 0:03:50]} Qc2 {[%emt 0:01:54]} 31. Nf3 {[%emt 0:01:22]} Re4 {[%emt 0:07:14]} 32. Qd2 {[%emt 0:05:32]} Rxc4 {[%emt 0:00:16]} 33. Qa5 {[%emt 0:00:15]} h6 {[%emt 0:02:17]} 0-1

[Event "WTCC-65 2018"]
[Site "Radebeul"]
[Date "2018.07.10"]
[Round "4"]
[White "Malmdin, Nils-Ake"]
[Black "Pitzl, Konstantinos"]
[Result "1/2-1/2"]
[ECO "B06"]
[WhiteElo "2138"]
[BlackElo "2037"]
[Annotator "NA"]
[PlyCount "77"]
[EventDate "2018.07.07"]
[EventType "team-tourn"]
[EventCountry "GER"]
[SourceTitle "playchess.com"]
[Source "ChessBase"]
[SourceQuality "1"]
[TimeControl "40/5400+30:1800+30"]

1. e4 {[%emt 0:00:00]} g6 {[%emt 0:00:00]} 2. d4 {[%emt 0:00:11]} Bg7 {[%emt 0:00:00]} 3. Nc3 {[%emt 0:01:07]} d6 {[%emt 0:01:01]} 4. f4 {[%emt 0:00:34]} Nf6 {[%emt 0:00:46]} 5. a3 {[%emt 0:00:21]} O-O {[%emt 0:02:58]} 6. Nf3 {[%emt 0:00:40]} Nc6 {[%emt 0:07:11]} 7. Be3 {[%emt 0:09:14]} Ng4 {[%emt 0:10:50]} 8. Bg1 {[%emt 0:01:24]} e5 {[%emt 0:00:16]} 9. d5 {[%emt 0:19:49]} Ne7 {[%emt 0:09:20]} 10. h3 {[%emt 0:00:29]} Nh6 {[%emt 0:00:13]} 11. fxe5 {[%emt 0:01:30]} dxe5 {[%emt 0:00:18]} 12. Bc4 {[%emt 0:01:37]} Kh8 {[%emt 0:02:19]} 13. Be3 {[%emt 0:21:13]} f6 {[%emt 0:00:30]} 14. Qd2 {[%emt 0:01:00]} Nf7 {[%emt 0:00:06]} 15. g4 {[%emt 0:01:14]} Nd6 {[%emt 0:00:19]} 16. Be2 {[%emt 0:04:03]} a6 {[%emt 0:04:26]} 17. O-O-O {[%emt 0:01:48]} b5 {[%emt 0:01:44]} 18. Rdg1 {[%emt 0:01:16]} Bd7 {[%emt 0:07:11]} 19. h4 {[%emt 0:01:08]} Kg8 {[%emt 0:09:36]} 20. Bh6 {[%emt 0:04:30]} Bxh6 {[%emt 0:00:18]} 21. Qxh6 {[%emt 0:00:11]} Nf7 {[%emt 0:00:03]} 22. Qd2 {[%emt 0:00:30]} Be8 {[%emt 0:00:57]} 23. g5 {[%emt 0:02:08]} Qd6 {[%emt 0:00:56]} 24. Rf1 {[%emt 0:01:22]} f5 {[%emt 0:00:10]} 25. exf5 {[%emt 0:02:49]} gxf5 {[%emt 0:00:27]} 26. h5 {[%emt 0:00:37]} e4 {[%emt 0:08:18]} 27. Nh4 {[%emt 0:01:06]} Ne5 {[%emt 0:00:40]} 28. Nxf5 {[%emt 0:06:04]} Nxf5 {[%emt 0:02:15]} 29. Nxe4 {[%emt 0:00:18]} Qb6 {[%emt 0:00:27]} 30. Nf6+ {[%emt 0:01:52]} Rxf6 {[%emt 0:04:57]} 31. gxf6 {[%emt 0:00:12]} Qxf6 {[%emt 0:07:29]} 32. Rhg1+ {[%emt 0:02:47]} Kh8 {[%emt 0:00:14]} 33. Rxf5 {[%emt 0:02:43]} Qxf5 {[%emt 0:00:17]} 34. Rf1 {[%emt 0:00:32]} Qe4 {[%emt 0:06:58]} 35. Rf8+ {[%emt 0:01:53]} Kg7 {[%emt 0:00:08]} 36. Rf4 {[%emt 0:00:14]} Qh1+ {[%emt 0:00:05]} 37. Rf1 {[%emt 0:00:03]} Qh4 {[%emt 0:00:49]} 38. Rf4 {[%emt 0:01:52]} Qh1+ {[%emt 0:02:47]} 39. Rf1 1/2-1/2

[Event "WTCC-65 2018"]
[Site "Radebeul"]
[Date "2018.07.10"]
[Round "4"]
[White "Ghijsen, Pim"]
[Black "Vaisser, Anatoly"]
[Result "0-1"]
[ECO "A46"]
[WhiteElo "2137"]
[BlackElo "2502"]
[Annotator "ChessBase"]
[PlyCount "84"]
[EventDate "2018.07.07"]
[EventType "team-tourn"]
[EventCountry "GER"]
[SourceTitle "playchess.com"]
[Source "ChessBase"]
[SourceQuality "1"]
[TimeControl "40/5400+30:1800+30"]

1. d4 {[%emt 0:00:00]} Nf6 {[%emt 0:00:00]} 2. Nf3 {[%emt 0:00:00]} c5 {[%emt 0:00:22]} 3. c3 {[%emt 0:00:26]} e6 {[%emt 0:01:27]} 4. Bf4 {[%emt 0:00:41]} cxd4 {[%emt 0:01:22]} 5. cxd4 {[%emt 0:00:07]} Qb6 {[%emt 0:00:32]} 6. Qb3 {[%emt 0:11:50]} Qxb3 {[%emt 0:01:08]} 7. axb3 {[%emt 0:00:03]} Nc6 {[%emt 0:01:20]} 8. Bd2 {[%emt 0:23:23]} d5 {[%emt 0:08:47]} 9. e3 {[%emt 0:02:00]} Bd7 {[%emt 0:03:18]} 10. Bd3 {[%emt 0:08:14]} Bd6 {[%emt 0:02:35]} 11. Ke2 {[%emt 0:04:50]} Ke7 {[%emt 0:04:41]} 12. Bc3 {[%emt 0:02:37]} Rhb8 {[%emt 0:11:45]} 13. Ne5 {[%emt 0:04:19]} Be8 {[%emt 0:00:57]} 14. Nd2 {[%emt 0:07:14]} Nb4 {[%emt 0:11:27]} 15. Bxb4 {[%emt 0:01:45]} Bxb4 {[%emt 0:00:04]} 16. Rhc1 {[%emt 0:00:05]} Bd6 {[%emt 0:00:52]} 17. f4 {[%emt 0:02:46]} a6 {[%emt 0:02:24]} 18. h3 {[%emt 0:03:37]} h6 {[%emt 0:02:32]} 19. Rc2 {[%emt 0:03:47]} Rc8 {[%emt 0:03:10]} 20. Rac1 {[%emt 0:00:18]} Rxc2 {[%emt 0:00:07]} 21. Rxc2 {[%emt 0:00:07]} a5 {[%emt 0:00:30]} 22. Rc1 {[%emt 0:01:01]} a4 {[%emt 0:04:13]} 23. Ra1 {[%emt 0:00:31]} b5 {[%emt 0:03:10]} 24. Kd1 {[%emt 0:02:52]} Kd8 {[%emt 0:04:07]} 25. Nef3 {[%emt 0:02:56]} Kc7 {[%emt 0:00:41]} 26. Ne1 {[%emt 0:00:18]} g5 {[%emt 0:03:50]} 27. fxg5 {[%emt 0:02:38]} hxg5 {[%emt 0:00:03]} 28. Nef3 {[%emt 0:03:19]} g4 {[%emt 0:00:52]} 29. hxg4 {[%emt 0:00:28]} Nxg4 {[%emt 0:00:07]} 30. Ke2 {[%emt 0:00:03]} Bd7 {[%emt 0:03:40]} 31. Bc2 {[%emt 0:02:29]} Kb6 {[%emt 0:02:25]} 32. Bd1 {[%emt 0:01:28]} b4 {[%emt 0:02:03]} 33. Nb1 {[%emt 0:01:18]} Bb5+ {[%emt 0:01:18]} 34. Kd2 {[%emt 0:00:05]} a3 {[%emt 0:00:44]} 35. Ra2 {[%emt 0:00:51]} Nf2 {[%emt 0:03:29]} 36. Be2 {[%emt 0:01:15]} Ne4+ {[%emt 0:00:50]} 37. Ke1 {[%emt 0:00:33]} Rc8 {[%emt 0:01:33]} 38. Bxb5 {[%emt 0:03:33]} Rc1+ {[%emt 0:00:20]} 39. Ke2 {[%emt 0:00:12]} Kxb5 {[%emt 0:07:12]} 40. Nfd2 {[%emt 0:01:19]} Rg1 {[%emt 0:09:10]} 41. bxa3 {[%emt 0:08:42]} Nc3+ {[%emt 0:00:58]} 42. Kf2 {[%emt 0:04:00]} Rxb1 {[%emt 0:00:19]} 0-1